[Event "*** Titled Tuesday Blitz"]
[Site "Chess.com"]
[Date "2020.04.14"]
[Round "8"]
[White "eljanov"]
[Black "CaspiIsrael"]
[Result "0-1"]
[WhiteElo "2772"]
[BlackElo "2556"]
[TimeControl "180+1"]
[EndTime "11:30:21 PDT"]
[Termination "CaspiIsrael won on time"]

1. Nf3 {[%clk 0:02:59.2]} 1... f5 {[%clk 0:02:53.3]} 2. g3 {[%clk 0:02:55]} 2...
g6 {[%clk 0:02:52.2]} 3. Bg2 {[%clk 0:02:54.5]} 3... Bg7 {[%clk 0:02:51.8]} 4.
d4 {[%clk 0:02:52.3]} 4... Nf6 {[%clk 0:02:51.6]} 5. c4 {[%clk 0:02:52.3]} 5...
O-O {[%clk 0:02:51.7]} 6. O-O {[%clk 0:02:51]} 6... d6 {[%clk 0:02:52.2]} 7. Nc3
{[%clk 0:02:50.9]} 7... c6 {[%clk 0:02:52.2]} 8. Qb3 {[%clk 0:02:25.6]} 8... Na6
{[%clk 0:02:30.8]} 9. Rd1 {[%clk 0:02:15.6]} 9... Qb6 {[%clk 0:02:29.2]} 10.
Qxb6 {[%clk 0:01:45.3]} 10... axb6 {[%clk 0:02:30.1]} 11. a3 {[%clk 0:01:38.5]}
11... Nc7 {[%clk 0:02:26.8]} 12. d5 {[%clk 0:01:25.6]} 12... c5 {[%clk
0:01:59.1]} 13. Rb1 {[%clk 0:01:05.9]} 13... Bd7 {[%clk 0:00:49.6]} 14. b4
{[%clk 0:00:59.3]} 14... cxb4 {[%clk 0:00:49.9]} 15. axb4 {[%clk 0:00:53.3]}
15... Rfc8 {[%clk 0:00:50.3]} 16. Be3 {[%clk 0:00:44.6]} 16... b5 {[%clk
0:00:50.1]} 17. c5 {[%clk 0:00:37.3]} 17... Na6 {[%clk 0:00:49.8]} 18. Bd4
{[%clk 0:00:23.6]} 18... dxc5 {[%clk 0:00:48.4]} 19. bxc5 {[%clk 0:00:23.8]}
19... Nxc5 {[%clk 0:00:49.3]} 20. Ne5 {[%clk 0:00:21.4]} 20... Be8 {[%clk
0:00:42.4]} 21. Nxb5 {[%clk 0:00:20.6]} 21... Nfe4 {[%clk 0:00:41.3]} 22. f3
{[%clk 0:00:13.5]} 22... Nd6 {[%clk 0:00:41.3]} 23. Nxd6 {[%clk 0:00:12.6]}
23... exd6 {[%clk 0:00:42.2]} 24. Nc4 {[%clk 0:00:12.3]} 24... Bxd4+ {[%clk
0:00:39.2]} 25. Rxd4 {[%clk 0:00:12.3]} 25... Ra4 {[%clk 0:00:39.7]} 26. e3
{[%clk 0:00:12.3]} 26... Rd8 {[%clk 0:00:35.8]} 27. Nb6 {[%clk 0:00:05.8]} 27...
Rxd4 {[%clk 0:00:35.1]} 28. exd4 {[%clk 0:00:06.2]} 28... Na6 {[%clk 0:00:29.9]}
29. Nc4 {[%clk 0:00:04.9]} 29... b5 {[%clk 0:00:28.2]} 30. Na5 {[%clk
0:00:05.2]} 30... Nc7 {[%clk 0:00:27.1]} 31. f4 {[%clk 0:00:05.2]} 31... Ra8
{[%clk 0:00:25.4]} 32. Nc6 {[%clk 0:00:04.8]} 32... Ra4 {[%clk 0:00:21.9]} 33.
Re1 {[%clk 0:00:04.5]} 33... Bxc6 {[%clk 0:00:20.2]} 34. dxc6 {[%clk 0:00:04.3]}
34... Kf7 {[%clk 0:00:20.6]} 35. d5 {[%clk 0:00:03.5]} 35... Rd4 {[%clk
0:00:19.8]} 36. Ra1 {[%clk 0:00:03.5]} 36... Ra4 {[%clk 0:00:18.3]} 37. Rb1
{[%clk 0:00:03.2]} 37... b4 {[%clk 0:00:17.8]} 38. h3 {[%clk 0:00:02.1]} 38...
h5 {[%clk 0:00:15.8]} 39. g4 {[%clk 0:00:01.8]} 39... hxg4 {[%clk 0:00:15.8]}
40. hxg4 {[%clk 0:00:02.7]} 40... fxg4 {[%clk 0:00:16.4]} 41. Kh2 {[%clk
0:00:03.2]} 41... Kf6 {[%clk 0:00:15.9]} 42. Rb2 {[%clk 0:00:01.3]} 42... Kf5
{[%clk 0:00:15.7]} 43. Kg3 {[%clk 0:00:01.7]} 43... Ra3+ {[%clk 0:00:15.6]} 44.
Kh2 {[%clk 0:00:01.7]} 44... g3+ {[%clk 0:00:16]} 45. Kh3 {[%clk 0:00:01.4]}
45... b3 {[%clk 0:00:11.4]} 46. Kxg3 {[%clk 0:00:01.7]} 46... Nb5 {[%clk
0:00:10.1]} 47. Kf2 {[%clk 0:00:01.3]} 47... Kxf4 {[%clk 0:00:09.9]} 48. Re2
{[%clk 0:00:01.2]} 48... Ra2 {[%clk 0:00:09.1]} 0-1

[Event "*** Titled Tuesday Blitz"]
[Site "Chess.com"]
[Date "2020.04.14"]
[Round "8"]
[White "Grandmaster2B"]
[Black "SanQui14"]
[Result "1-0"]
[WhiteElo "2530"]
[BlackElo "2328"]
[TimeControl "180+1"]
[EndTime "11:30:21 PDT"]
[Termination "Grandmaster2B won by resignation"]

1. e4 {[%clk 0:03:00.9]} 1... e6 {[%clk 0:02:57.5]} 2. d4 {[%clk 0:03:00.6]}
2... d5 {[%clk 0:02:58.4]} 3. Nd2 {[%clk 0:03:00.9]} 3... c5 {[%clk 0:02:58.5]}
4. exd5 {[%clk 0:03:01.1]} 4... Qxd5 {[%clk 0:02:58.5]} 5. Ngf3 {[%clk
0:03:01.7]} 5... cxd4 {[%clk 0:02:59.2]} 6. Bc4 {[%clk 0:03:02.5]} 6... Qd7
{[%clk 0:03:00]} 7. O-O {[%clk 0:03:03.3]} 7... Nc6 {[%clk 0:03:00.6]} 8. Nb3
{[%clk 0:03:04]} 8... Nf6 {[%clk 0:03:01.2]} 9. Nbxd4 {[%clk 0:03:04.5]} 9...
Nxd4 {[%clk 0:03:02.1]} 10. Nxd4 {[%clk 0:03:05.4]} 10... a6 {[%clk 0:03:02.6]}
11. Re1 {[%clk 0:03:05.5]} 11... Qc7 {[%clk 0:03:03.1]} 12. Qe2 {[%clk
0:03:05.5]} 12... Bd6 {[%clk 0:03:03.1]} 13. h3 {[%clk 0:03:03.8]} 13... O-O
{[%clk 0:03:02.8]} 14. Bg5 {[%clk 0:03:04.5]} 14... b5 {[%clk 0:03:02.7]} 15.
Bd3 {[%clk 0:03:00.9]} 15... Nd5 {[%clk 0:03:00.5]} 16. Rad1 {[%clk 0:02:57]}
16... h6 {[%clk 0:02:56.8]} 17. Bc1 {[%clk 0:02:31.6]} 17... Nf4 {[%clk
0:02:54.4]} 18. Bxf4 {[%clk 0:02:24.8]} 18... Bxf4 {[%clk 0:02:53.5]} 19. Qe4
{[%clk 0:00:54.8]} 19... g6 {[%clk 0:02:51.9]} 20. Qe2 {[%clk 0:00:48.7]} 20...
Bb7 {[%clk 0:02:44.7]} 21. Qg4 {[%clk 0:00:26.9]} 21... h5 {[%clk 0:02:29.6]}
22. Qe2 {[%clk 0:00:26.8]} 22... Rad8 {[%clk 0:02:17.8]} 23. Bxg6 {[%clk
0:00:20.5]} 23... fxg6 {[%clk 0:02:14.3]} 24. Nxe6 {[%clk 0:00:21.2]} 24... Qc6
{[%clk 0:02:08.5]} 25. Nxf4 {[%clk 0:00:11.5]} 25... Rxd1 {[%clk 0:02:05.4]} 26.
Rxd1 {[%clk 0:00:09.1]} 26... Rxf4 {[%clk 0:02:04.3]} 27. Rd8+ {[%clk
0:00:08.1]} 27... Kg7 {[%clk 0:02:03.3]} 28. Qe5+ {[%clk 0:00:06.9]} 28... Rf6
{[%clk 0:01:57.4]} 29. f3 {[%clk 0:00:06.2]} 29... Qb6+ {[%clk 0:01:49.8]} 30.
Rd4 {[%clk 0:00:04.7]} 30... Kg8 {[%clk 0:01:32.8]} 31. Kh2 {[%clk 0:00:04.6]}
31... Re6 {[%clk 0:01:31.6]} 32. Qf4 {[%clk 0:00:04.7]} 32... Rf6 {[%clk
0:01:26.7]} 33. Qb8+ {[%clk 0:00:03.4]} 33... Kg7 {[%clk 0:01:25.6]} 34. Rd7+
{[%clk 0:00:04]} 34... Rf7 {[%clk 0:01:25.5]} 35. Rd8 {[%clk 0:00:02.9]} 35...
a5 {[%clk 0:01:05.5]} 36. Rg8+ {[%clk 0:00:02.5]} 36... Kf6 {[%clk 0:01:05.7]}
37. Qf4+ {[%clk 0:00:02.4]} 37... Ke7 {[%clk 0:01:03.8]} 38. Qe5+ {[%clk
0:00:02.6]} 38... Qe6 {[%clk 0:01:03.9]} 39. Re8+ {[%clk 0:00:03.2]} 39... Kxe8
{[%clk 0:01:02.7]} 40. Qxe6+ {[%clk 0:00:04.1]} 40... Kf8 {[%clk 0:01:02.7]} 41.
Qxg6 {[%clk 0:00:03.9]} 41... b4 {[%clk 0:01:00.6]} 42. Qxh5 {[%clk 0:00:03.3]}
42... a4 {[%clk 0:01:01.3]} 43. Qh8+ {[%clk 0:00:03.3]} 43... Ke7 {[%clk
0:01:01.5]} 44. Qe5+ {[%clk 0:00:04.2]} 44... Kf8 {[%clk 0:01:02]} 45. Qd4
{[%clk 0:00:05.1]} 45... b3 {[%clk 0:01:01.8]} 46. Qb4+ {[%clk 0:00:05]} 46...
Kg8 {[%clk 0:01:01.8]} 47. cxb3 {[%clk 0:00:05.9]} 47... axb3 {[%clk 0:01:01.9]}
48. Qxb3 {[%clk 0:00:06.8]} 48... Kg7 {[%clk 0:01:02.5]} 49. a4 {[%clk
0:00:07.2]} 49... Ba6 {[%clk 0:01:02.6]} 50. Qc3+ {[%clk 0:00:08.1]} 50... Kg8
{[%clk 0:01:02.6]} 51. b4 {[%clk 0:00:08.5]} 51... Bb7 {[%clk 0:01:01.9]} 52. b5
{[%clk 0:00:08.8]} 52... Rg7 {[%clk 0:00:48.7]} 53. a5 {[%clk 0:00:07.9]} 53...
Re7 {[%clk 0:00:47.4]} 54. a6 {[%clk 0:00:06.5]} 54... Bxa6 {[%clk 0:00:47.8]}
55. bxa6 {[%clk 0:00:01.9]} 55... Kf7 {[%clk 0:00:48.7]} 56. Qc4+ {[%clk
0:00:01.9]} 56... Kf6 {[%clk 0:00:49]} 57. Qd4+ {[%clk 0:00:02]} 57... Kg6
{[%clk 0:00:49.2]} 58. a7 {[%clk 0:00:02.9]} 58... Re8 {[%clk 0:00:48.6]} 59.
Qd6+ {[%clk 0:00:02.5]} 59... Kg7 {[%clk 0:00:49.1]} 60. Qd7+ {[%clk 0:00:02.6]}
60... Kf8 {[%clk 0:00:49.1]} 61. Qxe8+ {[%clk 0:00:03.3]} 61... Kxe8 {[%clk
0:00:50]} 62. a8=Q+ {[%clk 0:00:04.2]} 62... Ke7 {[%clk 0:00:50.9]} 63. h4
{[%clk 0:00:04.9]} 63... Kd6 {[%clk 0:00:51.8]} 64. h5 {[%clk 0:00:05.4]} 64...
Kc5 {[%clk 0:00:52.7]} 65. h6 {[%clk 0:00:06.3]} 65... Kb4 {[%clk 0:00:53.6]}
66. h7 {[%clk 0:00:07.2]} 66... Kc3 {[%clk 0:00:54]} 67. h8=Q+ {[%clk
0:00:08.1]} 67... Kd2 {[%clk 0:00:54.9]} 68. Qhe8 {[%clk 0:00:07.1]} 68... Kd1
{[%clk 0:00:55]} 69. Qd5+ {[%clk 0:00:07.2]} 69... Kc1 {[%clk 0:00:55.1]} 70.
Qec6+ {[%clk 0:00:08.1]} 70... Kb1 {[%clk 0:00:55.7]} 71. Qdb5+ {[%clk 0:00:09]}
1-0

[Event "*** Titled Tuesday Blitz"]
[Site "Chess.com"]
[Date "2020.04.14"]
[Round "8"]
[White "Tonychess32"]
[Black "vovkcoach"]
[Result "1-0"]
[WhiteElo "2627"]
[BlackElo "2748"]
[TimeControl "180+1"]
[EndTime "11:30:24 PDT"]
[Termination "Tonychess32 won by resignation"]

1. e4 {[%clk 0:03:00.9]} 1... c5 {[%clk 0:02:59.7]} 2. Nf3 {[%clk 0:03:00.9]}
2... d6 {[%clk 0:03:00.1]} 3. c3 {[%clk 0:03:00.8]} 3... Nf6 {[%clk 0:02:59.8]}
4. Bd3 {[%clk 0:03:01.1]} 4... Nbd7 {[%clk 0:02:58.9]} 5. Bc2 {[%clk 0:03:01.5]}
5... b6 {[%clk 0:02:58.2]} 6. O-O {[%clk 0:03:01.8]} 6... Bb7 {[%clk 0:02:58.2]}
7. Re1 {[%clk 0:03:01.7]} 7... e5 {[%clk 0:02:51.5]} 8. d4 {[%clk 0:03:00.6]}
8... Be7 {[%clk 0:02:51.9]} 9. dxe5 {[%clk 0:02:55.4]} 9... dxe5 {[%clk
0:02:51.1]} 10. c4 {[%clk 0:02:53.4]} 10... O-O {[%clk 0:02:37.8]} 11. Nc3
{[%clk 0:02:53.6]} 11... Re8 {[%clk 0:02:36]} 12. Nd5 {[%clk 0:02:44.4]} 12...
Bxd5 {[%clk 0:02:32.4]} 13. exd5 {[%clk 0:02:40.7]} 13... Bd6 {[%clk 0:02:29.7]}
14. Ng5 {[%clk 0:02:34.6]} 14... h6 {[%clk 0:02:27.9]} 15. Ne4 {[%clk
0:02:34.8]} 15... Nxe4 {[%clk 0:02:27.8]} 16. Bxe4 {[%clk 0:02:34.3]} 16... Nf6
{[%clk 0:02:26.1]} 17. Bf5 {[%clk 0:02:33.8]} 17... e4 {[%clk 0:02:25.9]} 18. g3
{[%clk 0:02:31.4]} 18... g6 {[%clk 0:02:12.8]} 19. Bh3 {[%clk 0:02:30.6]} 19...
Be5 {[%clk 0:02:13.3]} 20. Qc2 {[%clk 0:02:26.3]} 20... b5 {[%clk 0:02:09.3]}
21. cxb5 {[%clk 0:02:24.3]} 21... Qxd5 {[%clk 0:02:05.6]} 22. Bxh6 {[%clk
0:02:23]} 22... c4 {[%clk 0:02:05.5]} 23. a4 {[%clk 0:02:18.3]} 23... Qd3 {[%clk
0:02:05.6]} 24. Rac1 {[%clk 0:02:13.5]} 24... a6 {[%clk 0:01:27.9]} 25. b6
{[%clk 0:02:11.4]} 25... Rab8 {[%clk 0:01:25.4]} 26. a5 {[%clk 0:02:11]} 26...
Qd5 {[%clk 0:01:19.3]} 27. Qxc4 {[%clk 0:02:05.1]} 27... Qxa5 {[%clk 0:01:17.5]}
28. Be3 {[%clk 0:02:05.2]} 28... Nd5 {[%clk 0:01:14.1]} 29. b4 {[%clk
0:01:33.2]} 29... Qb5 {[%clk 0:00:59.9]} 30. Qxb5 {[%clk 0:01:25.1]} 30... axb5
{[%clk 0:01:00.8]} 31. Bc5 {[%clk 0:01:19.6]} 31... Bb2 {[%clk 0:00:45.5]} 32.
Rc2 {[%clk 0:01:17.3]} 32... Bg7 {[%clk 0:00:36.6]} 33. Bd7 {[%clk 0:01:17.2]}
33... Red8 {[%clk 0:00:34.2]} 34. Bxb5 {[%clk 0:01:16.9]} 34... e3 {[%clk
0:00:33.8]} 35. fxe3 {[%clk 0:01:11.8]} 35... Nxb6 {[%clk 0:00:34]} 36. Bf1
{[%clk 0:01:06.9]} 36... Nd5 {[%clk 0:00:33.4]} 37. Rd1 {[%clk 0:01:04.2]} 37...
Bf6 {[%clk 0:00:16.8]} 38. Rcd2 {[%clk 0:01:00.6]} 38... Nc3 {[%clk 0:00:15.6]}
39. Rxd8+ {[%clk 0:01:00.5]} 39... Bxd8 {[%clk 0:00:16.5]} 40. Rd7 {[%clk
0:00:56.8]} 40... Ne4 {[%clk 0:00:10.8]} 41. Bc4 {[%clk 0:00:49.8]} 41... Nxc5
{[%clk 0:00:10.7]} 42. Bxf7+ {[%clk 0:00:44]} 42... Kf8 {[%clk 0:00:08.1]} 43.
bxc5 {[%clk 0:00:44.9]} 43... Bg5 {[%clk 0:00:08.5]} 44. c6 {[%clk 0:00:41.5]}
44... Rb2 {[%clk 0:00:04.8]} 45. c7 {[%clk 0:00:38.9]} 45... Bxe3+ {[%clk
0:00:04.7]} 46. Kh1 {[%clk 0:00:35.8]} 46... Rc2 {[%clk 0:00:04.1]} 47. Rd8+
{[%clk 0:00:27.7]} 47... Kxf7 {[%clk 0:00:03.4]} 48. c8=Q {[%clk 0:00:28.2]}
48... Rxc8 {[%clk 0:00:03.7]} 49. Rxc8 {[%clk 0:00:29.1]} 49... g5 {[%clk
0:00:04]} 50. Kg2 {[%clk 0:00:27.8]} 50... Kg6 {[%clk 0:00:03.9]} 51. Kf3 {[%clk
0:00:28]} 51... Bd4 {[%clk 0:00:04.4]} 52. Kg4 {[%clk 0:00:26.5]} 52... Bf6
{[%clk 0:00:04.5]} 53. Rc6 {[%clk 0:00:26.6]} 53... Kg7 {[%clk 0:00:05]} 54. Kf5
{[%clk 0:00:26.9]} 1-0

[Event "*** Titled Tuesday Blitz"]
[Site "Chess.com"]
[Date "2020.04.14"]
[Round "8"]
[White "Bigfish1995"]
[Black "Salem-AR"]
[Result "0-1"]
[WhiteElo "3093"]
[BlackElo "2932"]
[TimeControl "180+1"]
[EndTime "11:30:25 PDT"]
[Termination "Salem-AR won on time"]

1. e4 {[%clk 0:03:00.4]} 1... c5 {[%clk 0:02:59.9]} 2. Nf3 {[%clk 0:03:00.4]}
2... d6 {[%clk 0:03:00.7]} 3. d4 {[%clk 0:03:00.8]} 3... cxd4 {[%clk 0:03:01.6]}
4. Nxd4 {[%clk 0:03:01.2]} 4... Nf6 {[%clk 0:03:02.4]} 5. Nc3 {[%clk 0:03:01.4]}
5... a6 {[%clk 0:03:03.2]} 6. Bd3 {[%clk 0:03:01.5]} 6... e6 {[%clk 0:03:02.6]}
7. f4 {[%clk 0:02:58.8]} 7... Qc7 {[%clk 0:03:02.8]} 8. Qf3 {[%clk 0:02:58.2]}
8... b6 {[%clk 0:03:00]} 9. g4 {[%clk 0:02:55.3]} 9... Bb7 {[%clk 0:02:55.9]}
10. g5 {[%clk 0:02:55.2]} 10... Nfd7 {[%clk 0:02:56.4]} 11. h4 {[%clk
0:02:45.3]} 11... Nc6 {[%clk 0:02:55.5]} 12. Be3 {[%clk 0:02:43.9]} 12... Nc5
{[%clk 0:02:48.3]} 13. h5 {[%clk 0:02:38.2]} 13... O-O-O {[%clk 0:02:41.5]} 14.
O-O-O {[%clk 0:02:26]} 14... Be7 {[%clk 0:02:36.5]} 15. Kb1 {[%clk 0:02:22.4]}
15... Kb8 {[%clk 0:02:36.5]} 16. Nxc6+ {[%clk 0:02:03.9]} 16... Qxc6 {[%clk
0:02:32.4]} 17. Bd4 {[%clk 0:02:02.8]} 17... Rhg8 {[%clk 0:02:25.6]} 18. Qe3
{[%clk 0:01:45.7]} 18... Rc8 {[%clk 0:02:21.2]} 19. Rhg1 {[%clk 0:01:18.5]}
19... h6 {[%clk 0:01:35.8]} 20. g6 {[%clk 0:01:15.8]} 20... f6 {[%clk 0:01:33]}
21. Bc4 {[%clk 0:01:13.7]} 21... b5 {[%clk 0:01:27.7]} 22. Bxc5 {[%clk
0:01:13.3]} 22... dxc5 {[%clk 0:01:27.2]} 23. Bf1 {[%clk 0:00:53.4]} 23... b4
{[%clk 0:01:26.9]} 24. Ne2 {[%clk 0:00:53.6]} 24... Rgd8 {[%clk 0:01:27.4]} 25.
Bh3 {[%clk 0:00:47.6]} 25... a5 {[%clk 0:00:47.7]} 26. Rge1 {[%clk 0:00:46.6]}
26... a4 {[%clk 0:00:44.7]} 27. Ng3 {[%clk 0:00:36]} 27... c4 {[%clk 0:00:44.7]}
28. Qe2 {[%clk 0:00:12.9]} 28... a3 {[%clk 0:00:39.9]} 29. Qg4 {[%clk
0:00:12.3]} 29... b3 {[%clk 0:00:26.3]} 30. Qxe6 {[%clk 0:00:11.7]} 30... bxa2+
{[%clk 0:00:07.4]} 31. Kxa2 {[%clk 0:00:11.5]} 31... Qa4 {[%clk 0:00:07.9]} 32.
Ra1 {[%clk 0:00:03.8]} 32... axb2+ {[%clk 0:00:07]} 33. Kxb2 {[%clk 0:00:03.7]}
33... Qb4+ {[%clk 0:00:06.4]} 34. Ka2 {[%clk 0:00:02.9]} 34... Rc6 {[%clk
0:00:06.5]} 35. Qxc6 {[%clk 0:00:03.1]} 35... Bxc6 {[%clk 0:00:05.7]} 36. Reb1
{[%clk 0:00:04]} 36... Kc7 {[%clk 0:00:05.2]} 37. Rxb4 {[%clk 0:00:04.3]} 37...
Bxb4 {[%clk 0:00:06.1]} 38. Kb1 {[%clk 0:00:04.8]} 38... Rd1+ {[%clk 0:00:04.9]}
39. Ka2 {[%clk 0:00:05.3]} 39... Rd2 {[%clk 0:00:05.6]} 40. Kb2 {[%clk
0:00:05.7]} 40... Bc5 {[%clk 0:00:04.9]} 41. Rf1 {[%clk 0:00:02.4]} 41... Rh2
{[%clk 0:00:04.3]} 42. Bg4 {[%clk 0:00:02.4]} 42... Bd4+ {[%clk 0:00:03.7]} 43.
Kc1 {[%clk 0:00:02.3]} 43... Rg2 {[%clk 0:00:04]} 44. Rf3 {[%clk 0:00:02.2]}
44... c3 {[%clk 0:00:04]} 45. Kb1 {[%clk 0:00:01.5]} 45... Bb5 {[%clk
0:00:04.3]} 0-1

[Event "*** Titled Tuesday Blitz"]
[Site "Chess.com"]
[Date "2020.04.14"]
[Round "8"]
[White "NormWeinstein"]
[Black "martinbitel"]
[Result "0-1"]
[WhiteElo "2355"]
[BlackElo "2618"]
[TimeControl "180+1"]
[EndTime "11:30:25 PDT"]
[Termination "martinbitel won on time"]

1. e4 {[%clk 0:03:00.9]} 1... c5 {[%clk 0:02:58.6]} 2. Nf3 {[%clk 0:03:00.9]}
2... d6 {[%clk 0:02:58.3]} 3. Nc3 {[%clk 0:03:01.2]} 3... e5 {[%clk 0:02:50.8]}
4. Bc4 {[%clk 0:02:59.9]} 4... Nc6 {[%clk 0:02:47.4]} 5. d3 {[%clk 0:02:57.8]}
5... Be6 {[%clk 0:02:47.4]} 6. O-O {[%clk 0:02:56.4]} 6... Be7 {[%clk
0:02:38.4]} 7. Nd5 {[%clk 0:02:54.8]} 7... Nf6 {[%clk 0:02:35.1]} 8. c3 {[%clk
0:02:54.7]} 8... O-O {[%clk 0:02:35.1]} 9. Re1 {[%clk 0:02:51.4]} 9... Na5
{[%clk 0:02:30.2]} 10. Nxf6+ {[%clk 0:02:50.1]} 10... Bxf6 {[%clk 0:02:29.3]}
11. Bd5 {[%clk 0:02:49.6]} 11... Nc6 {[%clk 0:02:25]} 12. Be3 {[%clk 0:02:42.7]}
12... Bxd5 {[%clk 0:02:18.9]} 13. exd5 {[%clk 0:02:41.8]} 13... Ne7 {[%clk
0:02:19.1]} 14. c4 {[%clk 0:02:41.4]} 14... g6 {[%clk 0:02:12.4]} 15. a3 {[%clk
0:02:18.5]} 15... Bg7 {[%clk 0:02:04.2]} 16. Rb1 {[%clk 0:02:18.2]} 16... h6
{[%clk 0:02:03.2]} 17. b4 {[%clk 0:02:17.6]} 17... b6 {[%clk 0:02:03.8]} 18.
bxc5 {[%clk 0:02:15.7]} 18... dxc5 {[%clk 0:02:00.3]} 19. a4 {[%clk 0:02:01.2]}
19... a5 {[%clk 0:01:59.7]} 20. Bd2 {[%clk 0:01:41.1]} 20... f6 {[%clk
0:01:57.1]} 21. Qe2 {[%clk 0:01:35]} 21... Nc8 {[%clk 0:01:56.6]} 22. Nh4 {[%clk
0:01:26.6]} 22... Kh7 {[%clk 0:01:39.4]} 23. Qg4 {[%clk 0:01:25.1]} 23... Qe8
{[%clk 0:01:38.6]} 24. Nf3 {[%clk 0:01:09.8]} 24... Nd6 {[%clk 0:01:33.4]} 25.
Rxb6 {[%clk 0:01:03.4]} 25... Rd8 {[%clk 0:01:27]} 26. Qe6 {[%clk 0:01:00.4]}
26... Qxe6 {[%clk 0:01:20.2]} 27. dxe6 {[%clk 0:01:00.3]} 27... Rfe8 {[%clk
0:01:18.8]} 28. Bxa5 {[%clk 0:00:56]} 28... Rxe6 {[%clk 0:01:17.6]} 29. Rc6
{[%clk 0:00:52.4]} 29... Ra8 {[%clk 0:01:16.7]} 30. Bc7 {[%clk 0:00:47.3]} 30...
Bf8 {[%clk 0:01:10.8]} 31. a5 {[%clk 0:00:45.4]} 31... Kg7 {[%clk 0:01:06.9]}
32. Rb1 {[%clk 0:00:44]} 32... Kf7 {[%clk 0:01:05]} 33. g3 {[%clk 0:00:43.4]}
33... e4 {[%clk 0:00:47.8]} 34. dxe4 {[%clk 0:00:39.1]} 34... Nxe4 {[%clk
0:00:45.9]} 35. Rxe6 {[%clk 0:00:36.6]} 35... Kxe6 {[%clk 0:00:46.8]} 36. Rb6+
{[%clk 0:00:35.3]} 36... Kd7 {[%clk 0:00:44.4]} 37. Bf4 {[%clk 0:00:29.6]} 37...
Rxa5 {[%clk 0:00:39.3]} 38. Rb7+ {[%clk 0:00:28.5]} 38... Ke6 {[%clk 0:00:38]}
39. Be3 {[%clk 0:00:25.3]} 39... g5 {[%clk 0:00:34.1]} 40. g4 {[%clk 0:00:22.9]}
40... Bd6 {[%clk 0:00:30]} 41. Rb6 {[%clk 0:00:17.9]} 41... Ra4 {[%clk
0:00:26.9]} 42. Nd2 {[%clk 0:00:12.7]} 42... Nxd2 {[%clk 0:00:26.3]} 43. Bxd2
{[%clk 0:00:10.4]} 43... Rxc4 {[%clk 0:00:26.4]} 44. Be3 {[%clk 0:00:10.4]}
44... Rxg4+ {[%clk 0:00:25.8]} 45. Kf1 {[%clk 0:00:10.9]} 45... Rc4 {[%clk
0:00:25.4]} 46. h3 {[%clk 0:00:08.9]} 46... Kd5 {[%clk 0:00:24.4]} 47. Rb7
{[%clk 0:00:08]} 47... h5 {[%clk 0:00:24.2]} 48. Rf7 {[%clk 0:00:05.6]} 48...
Be5 {[%clk 0:00:23.4]} 49. Rd7+ {[%clk 0:00:04.9]} 49... Ke6 {[%clk 0:00:21.9]}
50. Rd8 {[%clk 0:00:04.4]} 50... h4 {[%clk 0:00:22.1]} 51. Kg2 {[%clk
0:00:04.2]} 51... Rc2 {[%clk 0:00:21.8]} 52. Re8+ {[%clk 0:00:03.7]} 52... Kf5
{[%clk 0:00:21.8]} 53. Rc8 {[%clk 0:00:02.6]} 53... c4 {[%clk 0:00:22]} 54. Rc5
{[%clk 0:00:02.6]} 54... c3 {[%clk 0:00:19.7]} 55. Bd4 {[%clk 0:00:01.1]} 55...
Ke4 {[%clk 0:00:20.2]} 0-1

[Event "*** Titled Tuesday Blitz"]
[Site "Chess.com"]
[Date "2020.04.14"]
[Round "8"]
[White "politeplayer"]
[Black "figo13"]
[Result "0-1"]
[WhiteElo "2184"]
[BlackElo "2331"]
[TimeControl "180+1"]
[EndTime "11:30:25 PDT"]
[Termination "figo13 won by resignation"]

1. e4 {[%clk 0:03:00.9]} 1... c5 {[%clk 0:02:59.4]} 2. d4 {[%clk 0:03:01.2]}
2... cxd4 {[%clk 0:02:59.2]} 3. c3 {[%clk 0:03:01.7]} 3... d3 {[%clk 0:02:58.9]}
4. Bxd3 {[%clk 0:03:01]} 4... d6 {[%clk 0:02:52.6]} 5. c4 {[%clk 0:02:59.7]}
5... Nc6 {[%clk 0:02:53.3]} 6. Nc3 {[%clk 0:03:00]} 6... g6 {[%clk 0:02:53.8]}
7. Nh3 {[%clk 0:02:58.4]} 7... Bxh3 {[%clk 0:02:52]} 8. gxh3 {[%clk 0:02:57.4]}
8... Nf6 {[%clk 0:02:47]} 9. h4 {[%clk 0:02:56.4]} 9... Qd7 {[%clk 0:02:44.4]}
10. Bg5 {[%clk 0:02:50.1]} 10... Bg7 {[%clk 0:02:41.6]} 11. Qa4 {[%clk
0:02:44.6]} 11... Ne5 {[%clk 0:01:55.9]} 12. Qxd7+ {[%clk 0:02:32.5]} 12... Kxd7
{[%clk 0:01:56.8]} 13. Be2 {[%clk 0:02:26.1]} 13... Rac8 {[%clk 0:01:49.2]} 14.
b3 {[%clk 0:02:18.5]} 14... h6 {[%clk 0:01:42.5]} 15. Bd2 {[%clk 0:02:12.5]}
15... Nc6 {[%clk 0:01:33.6]} 16. O-O-O {[%clk 0:02:06.6]} 16... Nd4 {[%clk
0:01:31.2]} 17. Bf1 {[%clk 0:02:01]} 17... e5 {[%clk 0:01:29]} 18. Bh3+ {[%clk
0:01:59.7]} 18... Ke7 {[%clk 0:01:23.5]} 19. Be3 {[%clk 0:01:47.4]} 19... Rc5
{[%clk 0:01:15.8]} 20. Rxd4 {[%clk 0:01:33.6]} 20... exd4 {[%clk 0:01:16.7]} 21.
Bxd4 {[%clk 0:01:33.8]} 21... Rh5 {[%clk 0:01:09.2]} 22. Rd1 {[%clk 0:01:23.6]}
22... Rxh4 {[%clk 0:01:08.2]} 23. Bxf6+ {[%clk 0:01:21.5]} 23... Kxf6 {[%clk
0:01:04.2]} 24. Nd5+ {[%clk 0:01:19.8]} 24... Ke5 {[%clk 0:01:03.5]} 25. Bg2
{[%clk 0:01:04.7]} 25... Rxh2 {[%clk 0:00:56]} 26. f4+ {[%clk 0:00:59.5]} 26...
Ke6 {[%clk 0:00:56.1]} 27. Bf3 {[%clk 0:00:55.2]} 27... h5 {[%clk 0:00:50.2]}
28. f5+ {[%clk 0:00:45.1]} 28... Ke5 {[%clk 0:00:47.2]} 29. fxg6 {[%clk
0:00:31.3]} 29... fxg6 {[%clk 0:00:46.9]} 30. Rg1 {[%clk 0:00:31.8]} 30... Bh6+
{[%clk 0:00:40.1]} 31. Kb1 {[%clk 0:00:29.8]} 31... g5 {[%clk 0:00:40.6]} 32.
Rd1 {[%clk 0:00:20.6]} 32... g4 {[%clk 0:00:40.5]} 33. Bh1 {[%clk 0:00:18.2]}
33... Bd2 {[%clk 0:00:37.2]} 34. Kc2 {[%clk 0:00:16]} 34... h4 {[%clk
0:00:32.6]} 35. Kd3 {[%clk 0:00:14.9]} 35... h3 {[%clk 0:00:31]} 36. Rf1 {[%clk
0:00:14.9]} 36... Bh6 {[%clk 0:00:23.9]} 37. Rf5+ {[%clk 0:00:11.3]} 37... Ke6
{[%clk 0:00:23.2]} 38. Nc7+ {[%clk 0:00:10.2]} 38... Kd7 {[%clk 0:00:21.3]} 39.
Rf7+ {[%clk 0:00:07.5]} 39... Kc6 {[%clk 0:00:20.9]} 40. Nd5 {[%clk 0:00:06.7]}
40... Rd2+ {[%clk 0:00:14.4]} 41. Kc3 {[%clk 0:00:05.8]} 41... Rxd5 {[%clk
0:00:15.3]} 42. e5 {[%clk 0:00:04.8]} 42... Kb6 {[%clk 0:00:16]} 43. Bxd5 {[%clk
0:00:04.4]} 43... dxe5 {[%clk 0:00:15.5]} 44. Rxb7+ {[%clk 0:00:03.3]} 44... Ka6
{[%clk 0:00:15.2]} 45. c5 {[%clk 0:00:01.5]} 45... Be3 {[%clk 0:00:13.3]} 46.
Rb4 {[%clk 0:00:01.9]} 46... Bxc5 {[%clk 0:00:12.6]} 47. Bb7+ {[%clk 0:00:02.5]}
47... Ka5 {[%clk 0:00:12.3]} 48. a3 {[%clk 0:00:02.7]} 48... Bxb4+ {[%clk
0:00:11.9]} 49. axb4+ {[%clk 0:00:03.3]} 49... Kb6 {[%clk 0:00:12.8]} 0-1